Cogmind - Beta 15 @@@ ROGUE MODE // 2025.06.19 @ 21:55:01 Player: Elxavo Result: Destroyed by X-62 Marksman with Pulse Rifle Performance ------------- Evolutions (3) 1500 Regions Visited (5) 1000 Robots Destroyed (31) 155 Value Destroyed (936) 936 Prototype IDs (0) 0 Alien Tech Used (0) 0 Bonus (500) 500 TOTAL SCORE: 4091 Bonus ------- Entered DSFs 500 Cogmind --------- Core Integrity 0/700 Matter 300/300 Energy 100/100 System Corruption 0% Temperature Cool (9) Movement Core (1400) Ox27 Location -7/DSF Parts ------- > --- POWER (2) -------- (None) > --- PROPULSION (4) --- (None) > --- UTILITY (4) ------ Huge Storage Unit > --- WEAPON (3) ------- Great Axe > --- INVENTORY (25) --- Light Nuclear Core Aluminum Leg Carbon-fiber Leg Trap Scanner Visual Processing Unit Microactuators Microactuators Utility Shielding Hardened Light Armor Plating Mining Laser Mining Laser Katana Peak State ------------ > --- POWER ------------ Light Nuclear Core Light Nuclear Core > --- PROPULSION ------- Light Treads Light Treads Light Treads > --- UTILITY ---------- Huge Storage Unit Improved Terrain Scanner Seismic Detector Utility Shielding > --- WEAPON ----------- Great Axe Great Axe > --- INVENTORY -------- Light Nuclear Core Aluminum Leg Carbon-fiber Leg Trap Scanner Visual Processing Unit Microactuators Microactuators Utility Shielding Hardened Light Armor Plating Mining Laser Mining Laser Katana [Rating: 25] Favorites ----------- Power Light Ion Engine Engine Light Ion Engine Power Core Light Nuclear Core Propulsion Aluminum Leg Treads Light Treads Leg Aluminum Leg Utility Huge Storage Unit Device Improved Terrain Scanner Storage Huge Storage Unit Processor Visual Processing Unit Protection Utility Shielding Weapon Autogun Energy Gun Medium Laser Ballistic Gun Autogun Special Weapon Mining Laser Slashing Weapon Great Axe Build | -11 -10 -9 -8 -7 -7 ------- Run | Yrd Mat Mat Mat Fac DSF Slots Evolved 6 | . . 2 2 2 . Power 1 | . . . . 1 . Propulsion 2 | . . 2 . . . Utility 2 | . . . 2 . . Weapon 1 | . . . . 1 . Parts Attached 32 | 6 3 5 13 2 3 Power 7 | 1 1 . 2 1 2 Engine 5 | 1 1 . 2 1 . Core 2 | . . . . . 2 Reactor . | . . . . . . Propulsion 10 | 2 . 2 6 . . Treads 4 | . . . 4 . . Leg 6 | 2 . 2 2 . . Wheel . | . . . . . . Hover . | . . . . . . Flight . | . . . . . . Utility 7 | 1 2 1 3 . . Device 2 | . . . 2 . . Storage 2 | 1 1 . . . . Processor 1 | . 1 . . . . Hackware . | . . . . . . Protection 2 | . . 1 1 . . Artifact . | . . . . . . Weapon 8 | 2 . 2 2 1 1 Energy Gun 2 | 1 . . 1 . . Energy Cannon . | . . . . . . Ballistic Gun 3 | 1 . 2 . . . Ballistic Cannon . | . . . . . . Launcher . | . . . . . . Special Weapon 1 | . . . 1 . . Impact Weapon . | . . . . . . Slashing Weapon 2 | . . . . 1 1 Piercing Weapon . | . . . . . . Special Melee Weapon . | . . . . . . Unidentified Prototypes . | . . . . . . Parts Lost 25 | . 1 . 11 . 13 Power 7 | . 1 . 2 . 4 Propulsion 10 | . . . 6 . 4 Utility 4 | . . . 1 . 3 Weapon 4 | . . . 2 . 2 Highest Loss Streak 13 | . 1 . 5 . 13 To Critical Strikes . | . . . . . . Average Backups 12 | 5 10 14 13 15 14 Power 2 | 1 1 2 2 3 2 Propulsion 3 | 1 4 4 3 2 2 Utility 3 | . 1 5 4 6 6 Weapon 2 | 1 2 3 3 4 3 Tool/Special . | . . . . . . Unused Backups 14 | . 1 1 1 . 11 Power 2 | . 1 . . . 1 Propulsion 2 | . . . . . 2 Utility 6 | . . . . . 6 Weapon 4 | . . 1 1 . 2 Tool/Special . | . . . . . . Average Slot Usage (%) 93 | . 98 99 92 91 68 Engine 11 | . 14 11 8 15 7 Treads 9 | . . . 11 30 20 Leg 22 | . 28 43 19 . . Device 9 | . . . 17 15 11 Storage 10 | . 14 11 9 7 7 Processor 4 | . 12 6 . . . Protection 5 | . . 4 8 7 6 Energy Gun 5 | . 14 5 2 . . Ballistic Gun 12 | . 14 16 14 7 2 Slashing Weapon 1 | . . . . 6 7 Peak Build Rating 25 | 6 9 14 18 22 25 Average Rating 13 | 5 8 12 16 21 18 On Entrance 11 | . 6 9 14 17 22 Naked Turns . | . . . . . . Heaviest Build 101 | 11 88 98 100 100 101 Greatest Support 80 | 20 20 40 80 80 80 Greatest Overweight (x) 28 | . 4 2 3 1 28 Average Overweight (x) 1 | . 1 2 1 1 3 Largest Inventory Capacity 25 | 8 25 25 25 25 25 Average Capacity 21 | 7 19 25 25 25 25 Most Carried 19 | 7 13 15 19 16 15 Average Carried 12 | 5 10 14 13 15 13 Final Capacity 25 | 8 25 25 25 25 25 Final Carried 17 | 7 13 15 17 15 12 Class Distribution -------------------- 58% | Mutant 41% | Scavenger-Mutant Dominant Class ---------------- Mutant | -10/Materials Mutant | -9/Materials Scavenger-Mutant | -8/Materials Scavenger-Mutant | -7/Factory Scavenger-Mutant | -7/DSF Resources | -11 -10 -9 -8 -7 -7 ----------- Run | Yrd Mat Mat Mat Fac DSF Matter Collected 934 | 292 61 75 491 . 15 Remotely . | . . . . . . Salvage Created 1189 | 179 357 80 520 . 53 Parts 77 | 15 23 5 29 . 5 Haulers Intercepted . | . . . . . . Recyclers Shooed . | . . . . . . Parts Field Recycled . | . . . . . . Retrieved Matter . | . . . . . . Parts Self-Destructed . | . . . . . . Prevented . | . . . . . . Kills | -11 -10 -9 -8 -7 -7 ------- Run | Yrd Mat Mat Mat Fac DSF Combat Hostiles Destroyed 18 | . 7 1 9 . 1 Melee 1 | . . . . . 1 Guns 17 | . 7 1 9 . . Classes Destroyed 9 | 3 3 1 1 . 1 Worker 2 | 1 . . 1 . . Tunneler 5 | 5 . . . . . Recycler 1 | 1 . . . . . Operator 1 | . 1 . . . . Watcher 4 | . 2 1 1 . . Grunt 11 | . 7 . 4 . . Sentry 5 | . . 1 4 . . Specialist 1 | . . . . . 1 Hunter 1 | . . . 1 . . Best Kill Streak 3 | 3 2 1 3 . 1 Combat Bots Only 2 | . 2 1 2 . 1 Max Kills in Single Turn 1 | 1 1 1 1 . 1 Gunslinging . | . . . . . . Exploded . | . . . . . . Melee 1 | . . . . . 1 Uniques/NPCs Destroyed . | . . . . . . Combat | -11 -10 -9 -8 -7 -7 -------- Run | Yrd Mat Mat Mat Fac DSF Hostile Shots Fired 250 | . 39 10 139 . 62 Missed 68 | . 10 3 46 . 9 Hits 182 | . 29 7 93 . 53 Projectile 182 | . 29 7 93 . 53 Critical Strikes 9 | . 1 2 1 . 5 Actively Blocked 1 | . . . . . 1 Damage Taken 3343 | . 367 104 1447 . 1425 Core 1095 | . 96 15 271 . 713 Absorbed by Shields . | . . . . . . Redirected to Shielding 51 | . . . 4 . 47 Core Remaining (%) 76 | 100 61 96 50 . . Volleys Fired 131 | 32 32 10 57 . . Largest 2 | 2 2 2 2 . . Hottest 100 | 70 70 73 100 . . Shots Fired 253 | 61 64 20 108 . . Gun 251 | 61 64 20 106 . . Cannon . | . . . . . . Launcher . | . . . . . . Special 2 | . . . 2 . . Kinetic 178 | 32 32 14 100 . . Thermal 69 | 29 32 6 2 . . Explosive . | . . . . . . Electromagnetic 6 | . . . 6 . . Robot Hit Streak 11 | 9 9 3 11 . . Robot Miss Streak 4 | 4 3 3 2 . . Penetration Max . | . . . . . . Secondary Targets 1 | . . . 1 . . Max Gunslinging Chain 1 | . . . 1 . . Shots Hit Robots 162 | 32 37 9 82 . 2 Core Hits 58 | 11 20 4 22 . 1 Critical Kills . | . . . . . . Critical Parts Destroyed . | . . . . . . Critical Strikes 4 | 2 2 . . . . Burn 4 | 2 2 . . . . Melee Attacks 3 | . . . . . 3 Impact . | . . . . . . Slashing 3 | . . . . . 3 Piercing . | . . . . . . Sneak Attacks . | . . . . . . Combat Hostiles . | . . . . . . Follow-up Attacks . | . . . . . . Damage Inflicted 2126 | 340 401 111 1186 . 88 Guns 2038 | 340 401 111 1186 . . Cannons . | . . . . . . Explosions . | . . . . . . Melee 88 | . . . . . 88 Ramming . | . . . . . . Kinetic 1476 | 153 113 87 1123 . . Thermal 499 | 187 288 24 . . . Explosive . | . . . . . . Electromagnetic 63 | . . . 63 . . Impact . | . . . . . . Slashing 88 | . . . . . 88 Piercing . | . . . . . . Highest Corruption . | . . . . . . Average Corruption . | . . . . . . Corruption Purged . | . . . . . . Corruption Blocked . | . . . . . . Overload Shots . | . . . . . . Overflow Damage . | . . . . . . Projectiles . | . . . . . . Explosions . | . . . . . . Melee . | . . . . . . Knockbacks . | . . . . . . Impact . | . . . . . . Kinetic . | . . . . . . Secondary . | . . . . . . Self-Inflicted Damage . | . . . . . . Shots . | . . . . . . Rammed . | . . . . . . Targets Rammed . | . . . . . . Kicked . | . . . . . . Crushed . | . . . . . . Highest Temperature 259 | 100 259 91 25 . . Average Temperature 38 | 30 63 32 7 . . Received Heat Transfer 1113 | . 222 63 594 . 234 Siege Activations . | . . . . . . Martial Activations . | . . . . . . Shielding Activations . | . . . . . . Robots Disrupted . | . . . . . . Combat Hostiles . | . . . . . . Robots Corrupted . | . . . . . . Combat Hostiles . | . . . . . . Parts Fried . | . . . . . . Impact Corruptions . | . . . . . . Robots Melted . | . . . . . . Combat Hostiles . | . . . . . . Parts Melted 2 | 2 . . . . . Heat Transferred 1776 | 703 999 74 . . . Parts Sabotaged . | . . . . . . Parts Stolen . | . . . . . . Parts Stripped . | . . . . . . Power Chain Reactions . | . . . . . . Alert | -11 -10 -9 -8 -7 -7 ------- Run | Yrd Mat Mat Mat Fac DSF Maximum Alert Level . | . . . . . . Low Security (%) 100 | 100 100 100 100 100 100 Level 1 . | . . . . . . Level 2 . | . . . . . . Level 3 . | . . . . . . Level 4 . | . . . . . . Level 5 . | . . . . . . High Security . | . . . . . . Max Security . | . . . . . . Peak Influence 65 | 10 65 30 63 5 30 Initial 2 | . . 2 . . . Average 11 | 1 21 3 18 . . Influence Increases 677 | 35 208 60 324 5 45 Destroy 0b10 Robot/C 360 | . 140 20 180 . 20 Destroy 0b10 Robot/NC 65 | 35 15 5 10 . . Destroy Leader 128 | . 34 12 72 . 10 Successful Hack 44 | . 4 8 27 5 . Disable Machine 15 | . . . 15 . . Destroy Structure 5 | . . . 5 . . Partial Spotted 30 | . . 15 15 . . Lose Combat Pursuer 30 | . 15 . . . 15 Influence Decreases 677 | 35 201 67 324 5 45 Entered New Map 5 | . . 5 . . . Time Decay 544 | 35 199 62 243 5 . Lost Part 128 | . 2 . 81 . 45 Squads Dispatched 9 | . 2 1 4 1 1 Investigation 1 | . 1 . . . . Extermination 1 | . . . . 1 . Reinforcement 4 | . 1 1 1 . 1 Assault . | . . . . . . Garrison 3 | . . . 3 . . Intercept . | . . . . . . Searches Triggered . | . . . . . . Construction Impeded . | . . . . . . Haulers Reinforced . | . . . . . . Active Scanning Responses . | . . . . . . Cargo Convoy Interrupts . | . . . . . . Stealth | -11 -10 -9 -8 -7 -7 --------- Run | Yrd Mat Mat Mat Fac DSF Distress Signals 1 | . . . 1 . . Communications Jammed . | . . . . . . Distress Signals . | . . . . . . Times Spotted 33 | . 10 4 16 . 3 Peak Tracking Total 4 | . 2 1 4 . 3 Tactical Retreats 2 | . 1 . . . 1 Traps | -11 -10 -9 -8 -7 -7 ------- Run | Yrd Mat Mat Mat Fac DSF Traps Triggered 5 | . 1 . . 2 2 Indirectly . | . . . . . . Trap Hack Attempts . | . . . . . . Triggered . | . . . . . . Disarmed . | . . . . . . Reprogrammed . | . . . . . . Reused . | . . . . . . Traps Extracted . | . . . . . . Installed . | . . . . . . Triggered . | . . . . . . Machines | -11 -10 -9 -8 -7 -7 ---------- Run | Yrd Mat Mat Mat Fac DSF Machines Disabled 1 | . . . 1 . . Max in Single Turn 1 | . . . 1 . . Machines Repaired . | . . . . . . Machines Dismantled . | . . . . . . Machines Sabotaged . | . . . . . . Overloaded Fab Kills . | . . . . . . Hacking | -11 -10 -9 -8 -7 -7 --------- Run | Yrd Mat Mat Mat Fac DSF Machines Accessed 10 | . 2 2 4 2 . Terminals 9 | . 2 2 4 1 . Fabricators . | . . . . . . Repair Stations . | . . . . . . Recycling Units . | . . . . . . Scanalyzers . | . . . . . . Garrison Access 1 | . . . . 1 . Total Hacks 24 | . 3 5 13 3 . Successful 11 | . 1 2 7 1 . Failed 13 | . 2 3 6 2 . Catastrophic 1 | . . 1 . . . Database Lockouts . | . . . . . . Manual 4 | . 1 2 1 . . Terminals 22 | . 3 5 13 1 . Fabricators . | . . . . . . Repair Stations . | . . . . . . Recycling Units . | . . . . . . Scanalyzers . | . . . . . . Garrison Access 2 | . . . . 2 . Terminal Hacks 11 | . 1 2 7 1 . Record 1 | . . . 1 . . Robot Analysis 1 | . 1 . . . . Open DSF 1 | . . . . 1 . Branch Access Points 3 | . . 1 2 . . Locate Traps 1 | . . 1 . . . Investigation Status 1 | . . . 1 . . Zone Layout 3 | . . . 3 . . Fabricator Hacks . | . . . . . . Repair Station Hacks . | . . . . . . Recycling Unit Hacks . | . . . . . . Scanalyzer . | . . . . . . Garrison Access Hacks . | . . . . . . Unauthorized Hacks . | . . . . . . Terminals . | . . . . . . Fabricators . | . . . . . . Repair Stations . | . . . . . . Recycling Units . | . . . . . . Scanalyzers . | . . . . . . Garrison Access . | . . . . . . Data Cores Recovered . | . . . . . . Used . | . . . . . . Hacking Detections 7 | . 2 1 2 2 . Full Trace Events . | . . . . . . Feedback Events . | . . . . . . Feedback Blocked . | . . . . . . Robot Schematics Acquired . | . . . . . . Robots Built . | . . . . . . Authchips . | . . . . . . Time . | . . . . . . Total Robot Build Rating . | . . . . . . Part Schematics Acquired . | . . . . . . Parts Built . | . . . . . . Authchips . | . . . . . . Time . | . . . . . . Total Part Build Rating . | . . . . . . Parts Repaired . | . . . . . . Time . | . . . . . . Parts Recycled . | . . . . . . Recycled Matter . | . . . . . . Retrieved Matter . | . . . . . . Retrieved Components . | . . . . . . Parts Scanalyzed . | . . . . . . Part Schematics Acquired . | . . . . . . Parts Damaged . | . . . . . . Bothacking | -11 -10 -9 -8 -7 -7 ------------ Run | Yrd Mat Mat Mat Fac DSF Used RIF Installer . | . . . . . . Robots Hacked . | . . . . . . Non-combat . | . . . . . . Combat . | . . . . . . Robot Hacks Applied . | . . . . . . Relay Couplers Released . | . . . . . . Fabnet Peak Effective % . | . . . . . . Robots Rewired . | . . . . . . Allies Hacked . | . . . . . . Hacks Repelled . | . . . . . . Allies | -11 -10 -9 -8 -7 -7 -------- Run | Yrd Mat Mat Mat Fac DSF Total Allies . | . . . . . . Largest Group . | . . . . . . Highest-Rated Group . | . . . . . . Highest-Rated Ally . | . . . . . . Total Orders . | . . . . . . Ally Attacks . | . . . . . . Total Damage . | . . . . . . Kills . | . . . . . . Allies Corrupted . | . . . . . . Allies Melted . | . . . . . . Intel | -11 -10 -9 -8 -7 -7 ------- Run | Yrd Mat Mat Mat Fac DSF Active Infowar (turns) 2085 | . 481 278 888 311 127 Optics 759 | . 481 278 . . . Terrain 1325 | . . . 887 311 127 Seismic 1299 | . . . 888 311 100 Robot Analysis Total 1 | . 1 . . . . Derelict Logs Recovered . | . . . . . . Drone Launches . | . . . . . . Drone Recoveries . | . . . . . . Exploration | -11 -10 -9 -8 -7 -7 ------------- Run | Yrd Mat Mat Mat Fac DSF Turns Passed 2659 | 316 506 499 888 311 139 Spaces Moved 940 | 183 169 168 257 128 35 Core 19 | 16 . . . . 3 Treads 296 | . . . 136 128 32 Legs 625 | 167 169 168 121 . . Wheels . | . . . . . . Hover . | . . . . . . Flight . | . . . . . . Fastest Speed 50 | 50 120 260 240 240 240 Average Speed 231 | 113 240 260 267 240 356 Slowest Speed 1450 | 120 400 260 330 240 1450 Overloaded Moves . | . . . . . . Propulsion Burnouts . | . . . . . . Robots Hopped . | . . . . . . Potential Cave-ins . | . . . . . . Cave-ins Triggered . | . . . . . . Exploration Rate (%) 19 | 7 33 15 27 2 31 Regions Visited 5 Branch Regions . Pre-discovered Areas . | . . . . . . Known Exits Taken 1 | . . . . 1 . Unknown Exits Taken 4 | 1 1 1 1 . . Scrap Searched . | . . . . . . Spaces Dug 1 | . . . 1 . . Terrain Destroyed 2 | . . . 2 . . Melee . | . . . . . . Projectile 2 | . . . 2 . . AOE . | . . . . . . Terrain Rammed . | . . . . . . Walls Destroyed . | . . . . . . Machines Disabled . | . . . . . . Actions | -11 -10 -9 -8 -7 -7 --------- Run | Yrd Mat Mat Mat Fac DSF Total 1219 | 235 214 215 366 133 56 Wait 57 | . . 23 23 . 11 Move 935 | 182 168 167 256 127 35 Hop . | . . . . . . Pick Up 42 | 12 9 6 15 . . Fast Attach 6 | 4 . 2 . . . Attach 24 | 2 2 3 12 2 3 Detach 1 | . . 1 . . . Swap 3 | . 1 . 2 . . Drop 9 | 3 2 3 1 . . Fire 131 | 32 32 10 57 . . Melee 3 | . . . . . 3 Ram . | . . . . . . Kick . | . . . . . . Crush . | . . . . . . Escape Stasis 8 | . . . . 4 4 Rewire . | . . . . . . Trap . | . . . . . . Miscellaneous . | . . . . . . Route ------- -11/Scrapyard -10/Materials (discovered 2 exits: *Mat / [*Min]) -9/Materials (discovered 2 exits: *Mat / Min) -8/Materials -7/Factory -7/DSF History --------- Turn | Location | Event 7 | -11/Scrapyard | Discovered new exit (range 14) 317 | -11/Scrapyard | Entered Materials 318 | -10/Materials | Build established: Mutant 650 | -10/Materials | Discovered new exit (range 6) 775 | -10/Materials | Discovered new exit (range 7) 823 | -10/Materials | Entered another Materials area 823 | -9/Materials | Evolved 2 slots: Propulsion x2 1246 | -9/Materials | Identified exit to Mines 1246 | -9/Materials | Discovered new exit (range 16) 1322 | -9/Materials | Entered another Materials area 1322 | -8/Materials | Evolved 2 slots: Utility x2 1629 | -8/Materials | Lost 5 parts (1p3n1u) 1630 | -8/Materials | Build established: Scavenger-Mutant 1661 | -8/Materials | Garrison activated, responded to threat 2007 | -8/Materials | Discovered new exit (range 9) 2061 | -8/Materials | Build established: Mutant 2210 | -8/Materials | Entered Factory 2210 | -7/Factory | Evolved 2 slots: Power x1, Weapon x1 2376 | -7/Factory | Identified exit to DSF 2498 | -7/Factory | Build established: Scavenger-Mutant 2521 | -7/Factory | Entered DSF 2573 | -7/DSF | Additional patrols routed to DSF 2640 | -7/DSF | Core integrity fell below 50% 2650 | -7/DSF | Core integrity fell below 20% 2660 | -7/DSF | Destroyed by X-62 Marksman with Pulse Rifle Last Messages --------------- 02618_ Penetrated by Slug. 02621_ Seismic Detector destroyed. 02621_ Critical hit (Burn: +37). 02624_ Penetrated by Slug. 02624_ Critical hit (Burn: +37). 02627_ Penetrated by Slug. 02629_ Lgt. Treads destroyed. 02629_ Lgt. Nuclear Core destroyed. 02629_ Knocked back. 02630_ Penetrated by Slug. 02631_ Knocked back. 02633_ Penetrated by Slug. 02639_ Knocked back. 02640_ Acquired 15 matter. 02644_ Knocked back. 02645_ Penetrated by Slug. 02648_ Imp. Terrain Scanner destroyed. 02649_ Knocked back. 02657_ Utility Shielding destroyed. 02660_ Penetrated by Slug. Map ----- +----------------------------------------------------+ | ????????????????????????????????????????????????? | | ????????????????????????????????????????????????? | | ????????????????????????????????????????????????? | | ????????????????????????????????????????????????? | | ????????????????????????????????????????????????? | | ????????????????????????????????????????????????? | | ????????????????????????????????????????????????? | | ??????????????????????# #?????????????????????? | | ????????? #?????????? ?????????????????????? | | ????????? ?????????? ????????????????????? | | ????????= ?????????? ?? ??????????????????? | | ????????= ?????????? ?????????????????????? | | ????????! #?????????# ?????#???????????????? | | ??????? ! #??? #? ?#?# #??? ?????????????????? | | ???????## ##???#???### ###???????????????????? | | ???????? =??? ?????!! [[????????????????????? | | ???#???? =?????????!! [[???????#? ??????????? | | ???????? =?#??? ????! [????#????????????????? | | ???????## ###??? ??### H###????#????? ????????? | | ???#???# ==????#??#!! !!#???????? ?????????? | | ???????# =??#?????#!!% !!#?????????? ????????? | | ?????#??# #?########!! x !!#####???????????????? | | ??????### ###==#===##; ;##[[[#??#????????????? | | ????###"" ##==#===##; =!###[[[#]]## ""??????? | | ???#""""" ^^ !%[ %%"??????? | | ???#"##"" @ ""??????? | | ??????#"""""##==#===# % # # ##""""???????? | | ??????#"""""######### #####???#???????????? | | ???#??####"##???????#####;###????????#??????????? | | ???????#?#"#???????????# #??????#??????????????? | | ?????????""#?????#??##??###??#??????????????????? | | ?????????##???????#?????#??#????????????????????? | | ????????????????????????#??#????????????????????? | | ??????????????????????????????????????#?????????? | | ????????????????#????#??????????????????????????? | | ????????????????????????????????#???????????????? | | | | | | | | | | | | | | | | | | | | | | | | | | | | | +----------------------------------------------------+ Best States ------------- Heat Dissipation 34 Energy Generation 23 Energy Capacity 290 Matter Stores 300 Matter Capacity 300 Sight Range 18 Terrain Scan Range 16 Terrain Scan Density 10 Armor Coverage 225 Utility Shielding 33 Evasion (%) 55 Recoil Reduction 4 Item Schematics ----------------- None Robot Schematics ------------------ None Fabricated ------------ Nothing Repaired ---------- Nothing Alien Tech Used ----------------- None Achievements -------------- None Challenges ------------ None Game ------ Seed CountertargetingTrapSpoofer Manual? 0 Play Time 00:38:40 Cumulative 34.6 hours Start 2025.06.19 @ 20:22:30 End 2025.06.19 @ 21:55:01 Sessions 3 Manual Loads 0 Difficulty Rogue Special Mode None Game No. 42 Rogue 42 Adventurer 0 Explorer 0 Win Type - Total 0 Types 0/0/0/0/0/0/0/0/0/0 Lore% 12 Gallery% 19 Achievement% 16 Wizard Run 0 Options --------- Layout 0 ASCII 0 Keyboard 0 Movement Mouse Keybinds 0 Fullscreen 1 Font 18/SmallcapsGlow Map View 76x50 Zoom Use 0% Tactical HUD 1 Map Filters NONE Filters LOW_CONTRAST(13,24,33) Steam 1 RUN: d7152c18-3b7b-42d2-9c8f-e6855cbeb070